bitfinex/quotes_SOLUSD_20250207
["timestamp","ask_amount","ask_price","bid_price","bid_amount"]
[1738895413821,66.19721434,194.8,194.79,0.063]
[1738895414059,50.24074434,194.85,194.79,0.063]
[1738895414349,2.5936,194.92,194.79,0.063]
[1738895414350,30.0,194.87,194.81,15.82074434]
[1738895414830,0.12549,194.84,194.8,15.82074434]
[1738895415032,0.12549,194.84,194.79,0.063]
[1738895415033,15.82074434,194.83,194.79,0.063]
[1738895415345,13.78831853,194.83,194.77,17.38814111]
[1738895415544,43.78831853,194.76,194.75,0.063]
[1738895416028,62.17626287,194.76,194.75,0.063]
[1738895417939,63.17626287,194.76,194.75,0.063]
[1738895418625,63.17626287,194.76,194.64,1.5585]
[1738895418626,52.37647,194.73,194.64,1.5585]
[1738895418825,81.60906287,194.73,194.72,0.0001]
[1738895419626,0.12549,194.6,194.59,1.5274]
[1738895420131,59.60906287,194.6,194.55,0.03]
[1738895420356,0.12549,194.57,194.55,0.03]
[1738895420579,13.78831853,194.57,194.55,0.03]
[1738895420747,43.66282853,194.56,194.55,0.03]
[1738895420944,43.78831853,194.56,194.55,0.03]
[1738895421148,70.19079927,194.56,194.55,0.0001]
[1738895421461,71.19079927,194.56,194.55,0.0001]
[1738895421647,0.37647,194.48,194.42,33.50338074]
[1738895421849,0.12549,194.46,194.42,33.50338074]
[1738895422267,30.0,194.52,194.44,25.40248074]
[1738895422479,30.0,194.54,194.48,25.40248074]
[1738895422658,30.0,194.56,194.5,25.40248074]
[1738895422866,30.0,194.56,194.51,25.40248074]
[1738895423066,0.25098,194.47,194.44,25.40248074]
[1738895423254,0.25098,194.47,194.42,8.1009]
[1738895423460,0.12549,194.46,194.42,8.1009]
[1738895423785,13.41184853,194.48,194.42,8.1009]
[1738895423786,20.0,194.48,194.42,8.1009]
[1738895424001,0.12549,194.48,194.42,13.2442]
[1738895424279,0.12549,194.48,194.42,8.1009]
[1738895424280,0.12549,194.46,194.42,8.1009]
[1738895424574,0.12549,194.46,194.42,13.2443]
[1738895424776,30.0,194.53,194.45,25.40248074]
[1738895425079,0.37647,194.52,194.47,25.40248074]
[1738895425279,0.25098,194.52,194.49,25.40248074]
[1738895425583,30.0,194.55,194.42,26.103]
[1738895425584,91.1,194.57,194.51,25.40248074]
[1738895425757,13.78831853,194.56,194.51,25.40248074]
[1738895426561,0.37647,194.56,194.52,25.40248074]
[1738895426756,0.37647,194.56,194.53,25.40248074]
[1738895427452,61.1,194.57,194.55,25.40248074]
[1738895427783,61.1,194.57,194.56,25.40248074]
[1738895428601,55.40248074,194.65,194.56,25.40248074]
[1738895428800,30.0,194.65,194.54,5.1403]
[1738895429100,0.12549,194.65,194.61,25.40248074]
[1738895429272,0.12549,194.61,194.57,25.40248074]
[1738895429477,0.12549,194.61,194.56,25.40248074]
[1738895429672,30.0,194.6,194.56,25.40248074]
[1738895429896,0.12549,194.59,194.56,25.40248074]
[1738895431111,0.12549,194.59,194.55,25.40248074]
[1738895433307,30.0,194.62,194.56,25.40248074]
[1738895433609,30.0,194.66,194.61,25.40248074]
[1738895434185,0.37647,194.65,194.6,25.40248074]
[1738895436276,0.37647,194.65,194.59,25.40248074]
[1738895436582,0.12549,194.63,194.58,25.40248074]
[1738895436784,0.12549,194.63,194.57,5.1392]
[1738895436785,0.12549,194.63,194.57,30.54168074]
[1738895438804,0.12549,194.61,194.57,25.40248074]
[1738895439182,0.37647,194.61,194.56,25.40248074]
[1738895439403,0.12549,194.59,194.56,25.40248074]
[1738895440297,20.0,194.61,194.58,25.40248074]
[1738895440492,30.0,194.66,194.6,25.40248074]
[1738895440886,20.25098,194.62,194.6,25.40248074]
[1738895441087,20.25098,194.62,194.61,25.40248074]
[1738895441304,0.12549,194.65,194.61,25.40248074]
[1738895441488,0.12549,194.65,194.58,5.1391]
[1738895441489,32.568,194.7,194.63,25.40248074]
[1738895441691,30.0,194.72,194.67,25.40248074]
[1738895441905,93.6873,194.76,194.7,25.40248074]
[1738895442088,30.0,194.74,194.7,25.40248074]
[1738895442411,30.0,194.74,194.63,7.7309]
[1738895442412,0.37647,194.71,194.68,25.40248074]
[1738895442613,0.25098,194.73,194.66,25.40248074]
[1738895442614,25.40248074,194.73,194.66,25.40248074]
[1738895442901,30.0,194.75,194.71,25.40248074]
[1738895443288,0.12549,194.74,194.71,25.40248074]
[1738895443489,0.25098,194.74,194.71,25.40248074]
[1738895443692,0.25098,194.74,194.7,25.40248074]
[1738895444307,0.12549,194.73,194.7,25.40248074]
[1738895444811,0.12549,194.73,194.71,25.40248074]
[1738895445010,0.12549,194.72,194.67,25.40248074]
[1738895445312,0.12549,194.7,194.65,25.40248074]
[1738895445480,0.12549,194.71,194.67,25.40248074]
[1738895445794,57.96998074,194.74,194.61,5.1384]
[1738895445795,91.12,194.76,194.7,25.40248074]
[1738895445996,61.12,194.76,194.74,25.40248074]
[1738895448210,61.12,194.76,194.75,25.40248074]
[1738895449118,61.37098,194.76,194.74,25.40248074]
[1738895449299,61.37098,194.76,194.72,25.40248074]
[1738895450220,61.37098,194.76,194.73,25.40248074]
[1738895450395,61.37098,194.76,194.7,5.1358]
[1738895450396,61.37098,194.76,194.74,25.40248074]
[1738895451209,61.37098,194.76,194.73,25.40248074]
[1738895451415,61.37098,194.76,194.74,25.40248074]
[1738895452106,0.25098,194.75,194.73,25.40248074]
[1738895452307,61.12,194.76,194.74,25.40248074]
[1738895452494,61.12,194.76,194.75,25.40248074]
[1738895452698,0.063,194.77,194.75,25.40248074]
[1738895453007,0.063,194.77,194.76,25.40248074]
[1738895453515,10.8331,194.92,194.76,25.40248074]
[1738895453516,30.0,194.9,194.77,7.0593]
[1738895453818,20.0,194.88,194.87,25.40248074]
[1738895454016,20.0,194.88,194.85,25.40248074]
[1738895454201,13.78831853,194.87,194.81,25.40248074]
[1738895454402,30.0,194.84,194.76,1.515]
[1738895454716,0.12549,194.79,194.76,25.40248074]
[1738895454912,0.12549,194.79,194.75,25.40248074]
[1738895455311,0.12549,194.79,194.76,25.40248074]
[1738895455616,16.10413853,194.79,194.73,25.40248074]
[1738895455798,0.12549,194.77,194.73,25.40248074]
[1738895456301,13.53733853,194.77,194.71,25.40248074]
[1738895456620,13.53733853,194.77,194.72,25.40248074]
[1738895456830,13.53733853,194.77,194.73,25.40248074]
[1738895457123,13.53733853,194.77,194.72,25.40248074]
[1738895457800,30.0,194.8,194.73,25.40248074]
[1738895458127,20.0,194.77,194.75,25.40248074]
[1738895458301,0.25098,194.79,194.76,25.40248074]
[1738895458620,2.5663,194.83,194.76,25.40248074]
[1738895458621,0.25098,194.77,194.76,25.40248074]
[1738895458916,43.53733853,194.81,194.76,25.40248074]
[1738895459122,32.5663,194.83,194.77,25.40248074]
[1738895459421,30.0,194.87,194.81,25.40248074]
[1738895459623,38.02309389,194.89,194.85,25.40248074]
[1738895459925,8.02309389,194.89,194.86,25.40248074]
[1738895460431,8.02309389,194.89,194.87,25.40248074]
[1738895460724,8.02309389,194.89,194.88,25.40248074]
[1738895461297,20.0,194.9,194.87,25.40248074]
[1738895461621,20.0,194.89,194.86,25.40248074]
[1738895462519,20.0,194.9,194.86,25.40248074]
[1738895462721,20.0,194.89,194.86,25.40248074]
[1738895464023,25.40248074,194.9,194.83,25.40248074]
[1738895464192,97.3833,194.94,194.82,1.0]
[1738895464526,67.3833,194.94,194.89,25.40248074]
[1738895464713,32.6277,194.96,194.89,1.0]
[1738895464714,0.063,194.96,194.89,1.0]
[1738895464892,0.063,194.96,194.9,0.76933721]
[1738895465839,0.063,194.96,194.94,25.40248074]
[1738895466938,0.063,194.96,194.9,5.89996548]
[1738895466939,0.063,194.96,194.95,25.40248074]
[1738895468327,0.063,194.96,194.94,25.40248074]
[1738895468543,20.063,194.96,194.91,25.40248074]
[1738895469539,20.0,194.95,194.91,25.40248074]
[1738895469926,0.063,194.96,194.94,25.40248074]
[1738895470134,0.063,194.96,194.95,25.40248074]
[1738895470723,0.063,194.96,194.94,25.40248074]
[1738895471244,0.063,194.96,194.93,25.40248074]
[1738895471445,0.063,194.96,194.94,25.40248074]
[1738895472142,0.063,194.96,194.93,25.40248074]
[1738895472646,20.0,194.95,194.91,25.40248074]
[1738895472848,25.71646074,194.96,194.89,25.40248074]
[1738895473050,25.71646074,194.96,194.88,25.40248074]
[1738895473445,28.28116074,194.96,194.88,25.40248074]
[1738895474055,28.28116074,194.96,194.88,30.53378074]
[1738895474854,45.40248074,194.95,194.88,30.53378074]
[1738895475051,25.40248074,194.93,194.86,25.40248074]
[1738895475250,20.0,194.95,194.92,25.40248074]
[1738895475448,0.063,194.96,194.94,25.40248074]
[1738895476249,0.063,194.96,194.93,25.40248074]
[1738895476849,20.063,194.96,194.92,25.40248074]
[1738895477042,0.063,194.96,194.92,25.40248074]
[1738895477228,20.063,194.96,194.92,25.40248074]
[1738895477435,0.063,194.96,194.93,25.40248074]
[1738895478048,0.063,194.96,194.88,14.59714581]
[1738895478049,0.063,194.96,194.9,25.40248074]
[1738895478256,0.063,194.96,194.88,25.40248074]
[1738895478257,20.0,194.93,194.88,25.40248074]
[1738895479256,20.0,194.93,194.89,25.40248074]
[1738895480944,2.5648,194.95,194.89,25.40248074]
[1738895482063,20.0,194.93,194.89,25.40248074]
[1738895482637,0.063,194.96,194.92,25.40248074]
[1738895482870,0.063,194.96,194.95,25.40248074]
[1738895483741,0.063,194.96,194.93,25.40248074]
[1738895485543,0.063,194.96,194.94,25.40248074]
[1738895487071,0.063,194.96,194.93,25.40248074]
[1738895487363,0.063,194.96,194.91,25.40248074]
[1738895487364,20.063,194.96,194.91,25.40248074]
[1738895487563,20.063,194.96,194.9,25.40248074]
[1738895487867,20.0,194.95,194.91,25.40248074]
[1738895488381,20.0,194.95,194.9,25.40248074]
[1738895488662,20.0,194.95,194.89,25.40248074]
[1738895491173,20.0,194.91,194.87,25.40248074]
[1738895491351,6.5673,194.95,194.89,25.40248074]
[1738895491578,6.5673,194.95,194.86,5.1318]
[1738895491579,0.063,194.96,194.93,25.40248074]
[1738895492165,20.31398,194.96,194.93,25.40248074]
[1738895492372,20.31398,194.96,194.92,25.40248074]
[1738895492678,20.31398,194.96,194.91,25.40248074]
[1738895493384,20.31398,194.96,194.92,25.40248074]
[1738895493880,20.063,194.96,194.92,25.40248074]
[1738895494181,0.063,194.96,194.95,25.40248074]
[1738895494569,0.063,194.96,194.94,25.40248074]
[1738895494863,0.063,194.96,194.93,25.40248074]
[1738895495863,20.063,194.96,194.91,25.40248074]
[1738895496673,20.063,194.96,194.93,25.40248074]
[1738895496859,0.063,194.96,194.93,25.40248074]
[1738895497655,0.063,194.96,194.94,25.40248074]
[1738895498381,20.063,194.96,194.92,25.40248074]
[1738895498564,20.063,194.96,194.89,5.1309]
[1738895498565,20.063,194.96,194.9,25.40248074]
[1738895499892,20.063,194.96,194.92,25.40248074]
[1738895500059,20.063,194.96,194.94,25.40248074]
[1738895500060,0.063,194.96,194.94,25.40248074]
[1738895501592,0.063,194.96,194.95,0.76927021]
[1738895501963,0.063,194.96,194.95,5.89877021]
[1738895502289,0.063,194.97,194.96,1.0]
[1738895502499,0.063,194.97,194.96,26.40248074]
[1738895502794,0.063,195.04,195.0,1.0]
[1738895503024,0.063,195.04,195.03,25.40248074]
[1738895503190,0.063,195.04,195.02,25.40248074]
[1738895503612,0.063,195.04,195.03,25.40248074]
[1738895504822,0.063,195.04,195.03,30.52988074]
[1738895505199,0.063,195.04,195.03,25.40248074]
[1738895505714,0.063,195.04,195.02,25.40248074]
[1738895505906,0.063,195.04,195.01,25.40248074]
[1738895507914,20.0,195.03,194.98,25.40248074]
[1738895508093,20.0,195.03,194.97,25.40248074]
[1738895508295,13.66282853,195.02,194.95,25.40248074]
[1738895508493,39.06530927,195.02,194.95,25.40248074]
[1738895508708,40.63590927,195.02,194.95,25.40248074]
[1738895509210,2.5639,195.01,194.95,25.40248074]
[1738895509613,0.25098,195.0,194.94,25.40248074]
[1738895509918,0.25098,195.0,194.95,25.40248074]
[1738895511195,2.81508,195.0,194.96,25.40248074]
[1738895511704,2.81508,195.0,194.95,25.40248074]
[1738895511908,1.5706,195.02,194.99,25.40248074]
[1738895512214,8.08609389,195.04,195.01,25.40248074]
[1738895512404,8.08609389,195.04,194.96,137.96933843]
[1738895512405,8.08609389,195.04,195.0,0.76915755]
[1738895512800,8.08609389,195.04,195.0,1.76915755]
[1738895512998,8.08609389,195.04,195.03,25.40248074]
[1738895513218,8.08609389,195.04,195.03,30.52988074]
[1738895514422,8.08609389,195.04,195.03,31.52988074]
[1738895514711,8.08609389,195.04,195.03,169.72988074]
[1738895514914,0.063,195.04,195.03,169.72988074]
[1738895515126,0.03,195.07,195.06,21.0]
[1738895515302,8.02309389,195.12,195.11,25.40248074]
[1738895515499,8.02309389,195.12,195.11,26.17104474]
[1738895515701,8.02309389,195.12,195.11,25.40248074]
[1738895517600,8.02309389,195.12,195.1,25.40248074]
[1738895518005,20.25098,195.14,195.1,25.40248074]
[1738895518432,20.25098,195.14,195.09,25.40248074]
[1738895518727,20.25098,195.14,195.1,25.40248074]
[1738895520527,22.81318,195.14,195.09,25.40248074]
[1738895520730,22.81318,195.14,195.03,13.8185]
[1738895520731,0.25098,195.12,195.07,25.40248074]
[1738895521032,20.0,195.1,195.06,25.40248074]
[1738895521219,20.0,195.1,195.07,25.40248074]
[1738895521648,2.5921,195.16,195.09,25.40248074]
[1738895521817,2.5921,195.16,195.13,25.40248074]
[1738895521818,0.03,195.16,195.13,25.40248074]
[1738895522129,0.03,195.16,195.15,25.40248074]
[1738895522625,0.03,195.16,195.13,25.40248074]
[1738895523012,20.03,195.16,195.12,25.40248074]
[1738895523209,0.25098,195.14,195.11,25.40248074]
[1738895523531,0.25098,195.14,195.07,25.40248074]
[1738895523532,20.0,195.11,195.07,25.40248074]
[1738895523831,20.0,195.1,195.06,25.40248074]
[1738895524211,20.0,195.11,195.07,25.40248074]
[1738895524532,20.0,195.11,195.06,25.40248074]
[1738895525232,22.5626,195.11,195.06,25.40248074]
[1738895526035,15.45336906,236.1,195.09,25.40248074]
[1738895526036,55.43248074,195.16,195.09,25.40248074]
[1738895526330,20.0,195.14,195.12,25.40248074]
[1738895527104,20.0,195.14,195.13,25.40248074]
[1738895527306,0.28098,195.16,195.13,25.40248074]
[1738895527530,0.03,195.16,195.15,25.40248074]
[1738895527833,0.03,195.16,195.1,30.52788074]
[1738895528041,0.03,195.16,195.13,25.40248074]
[1738895528412,0.03,195.16,195.15,25.40248074]
[1738895529145,0.03,195.16,195.15,30.52668074]
[1738895531031,0.03,195.16,195.13,25.40248074]
[1738895531548,0.03,195.16,195.14,25.40248074]
[1738895532134,0.03,195.16,195.13,25.40248074]
[1738895532720,0.03,195.16,195.12,25.40248074]
[1738895532913,2.81318,195.15,195.09,25.40248074]
[1738895533116,20.0,195.14,195.09,25.40248074]
[1738895534347,0.25098,195.13,195.09,25.40248074]
[1738895534543,0.25098,195.13,195.07,0.03]
[1738895534544,20.0,195.11,195.07,0.03]
[1738895534843,20.0,195.08,195.07,0.03]
[1738895535026,20.25098,195.08,195.07,0.03]
[1738895535224,20.0,195.08,195.07,0.03]
[1738895535416,33.78831853,195.08,195.07,0.03]
[1738895536432,36.35131853,195.08,195.07,0.03]
[1738895537946,66.35131853,195.08,195.07,0.03]
[1738895538123,36.35131853,195.08,195.07,0.03]
[1738895538333,33.78831853,195.08,195.07,0.03]
[1738895538838,0.25098,195.08,195.07,0.03]
[1738895539045,1.5825,195.11,195.07,0.03]
[1738895539046,4.1451,195.11,195.07,0.03]
[1738895539230,20.0,195.08,195.07,0.03]
[1738895539746,20.25098,195.08,195.07,0.03]
[1738895542059,22.81398,195.08,195.07,0.03]
[1738895543953,36.35131853,195.08,195.07,0.03]
[1738895545472,61.75379927,195.08,195.07,0.03]
[1738895546562,36.35131853,195.08,195.07,0.03]
[1738895548971,4.4,195.14,195.07,25.43248074]
[1738895548972,2.5623,195.14,195.07,25.43248074]
[1738895549176,4.1757,195.16,195.11,25.40248074]
[1738895549678,20.0,195.12,195.11,25.40248074]
[1738895549851,20.0,195.12,195.1,25.40248074]
[1738895551580,4.1757,195.16,195.11,25.40248074]
[1738895551581,0.03,195.16,195.11,25.40248074]
[1738895551881,0.03,195.16,195.15,25.40248074]
[1738895552240,0.03,195.16,195.15,26.17094688]
[1738895552475,0.03,195.16,195.15,25.40248074]
[1738895553849,0.03,195.16,195.12,137.2]
[1738895554253,0.03,195.16,195.15,25.40248074]
[1738895554584,0.03,195.23,195.18,1.0]
[1738895554750,0.03,195.23,195.19,1.76814252]
[1738895555691,0.03,195.23,195.22,25.40248074]
[1738895555859,0.03,195.23,195.22,26.17059403]
[1738895556055,0.03,195.23,195.22,25.40248074]
[1738895557277,0.03,195.23,195.22,30.52488074]
[1738895558886,0.03,195.23,195.22,167.72488074]
[1738895559081,0.063,195.24,195.23,1.0]
[1738895559387,0.03,195.36,195.26,1.0]
[1738895559687,0.03,195.36,195.32,25.40248074]
[1738895559989,2.5894,195.36,195.32,25.40248074]
[1738895560285,22.5894,195.36,195.32,25.40248074]
[1738895561168,20.03,195.36,195.34,25.40248074]
[1738895561883,22.5893,195.36,195.31,25.40248074]
[1738895562082,20.03,195.36,195.32,25.40248074]
[1738895562275,20.03,195.36,195.34,25.40248074]
[1738895562276,0.03,195.36,195.34,25.40248074]
[1738895563575,0.03,195.36,195.33,25.40248074]
[1738895564283,0.03,195.36,195.34,25.40248074]
[1738895564473,0.03,195.36,195.35,25.40248074]
[1738895566368,0.03,195.36,195.35,30.52148074]
[1738895567184,0.03,195.36,195.35,31.28906314]
[1738895568777,0.03,195.36,195.35,25.40248074]
[1738895570071,0.03,195.36,195.34,25.40248074]
[1738895570503,0.03,195.36,195.33,25.40248074]
[1738895570678,20.0,195.35,195.32,15.74643143]
[1738895571765,20.0,195.35,195.33,15.74643143]
[1738895572191,0.03,195.36,195.33,15.74643143]
[1738895572494,2.5894,195.36,195.32,15.74643143]
[1738895572696,2.5894,195.36,195.32,25.19351858]
[1738895573409,2.5894,195.36,195.33,25.19351858]
[1738895573974,0.03,195.36,195.33,25.19351858]
[1738895574898,0.03,195.36,195.32,25.19351858]
[1738895575201,15.97134853,195.35,195.28,25.19351858]
[1738895575988,25.31900858,195.34,195.27,25.22351858]
[1738895576301,20.0,195.31,195.27,25.22351858]
[1738895576501,20.0,195.29,195.27,0.03]
[1738895577283,20.0,195.3,195.27,0.03]
[1738895577610,20.0,195.28,195.27,0.03]
[1738895577780,31.23511858,195.29,195.27,0.03]
[1738895578210,20.0,195.28,195.27,0.03]
[1738895579430,22.5604,195.28,195.27,0.03]
[1738895581003,46.34871853,195.28,195.27,0.03]
[1738895581311,71.54223711,195.28,195.27,0.03]
[1738895581635,20.0,195.23,195.18,25.19351858]
[1738895581845,20.0,195.21,195.16,25.19351858]
[1738895582009,20.0,195.21,195.15,25.19351858]
[1738895582214,20.0,195.21,195.17,25.19351858]
[1738895582432,20.0,195.21,195.18,25.19351858]
[1738895582900,2.561,195.24,195.2,25.19351858]
[1738895583106,2.561,195.24,195.19,25.19351858]
[1738895583336,41.16636711,195.24,195.17,25.19351858]
[1738895583513,25.19351858,195.23,195.16,25.19351858]
[1738895584015,32.561,195.24,195.2,25.19351858]
[1738895584016,20.0,195.22,195.2,25.19351858]
[1738895584341,20.0,195.22,195.19,25.19351858]
[1738895584636,2.5613,195.21,195.16,25.19351858]
[1738895585141,20.0,195.21,195.18,25.19351858]
[1738895585307,20.0,195.21,195.19,25.19351858]
[1738895585642,20.0,195.22,195.19,25.19351858]
[1738895585842,20.0,195.22,195.17,25.19351858]
[1738895586006,38.73085711,195.22,195.15,25.19351858]
[1738895586428,38.73085711,195.22,195.17,0.03]
[1738895586824,2.5613,195.21,195.17,0.03]
[1738895587539,20.0,195.19,195.17,0.03]
[1738895587838,20.0,195.18,195.17,0.03]
[1738895588136,27.75511858,195.19,195.17,0.03]
[1738895588338,20.0,195.18,195.17,0.03]
[1738895588938,33.53733853,195.18,195.17,0.03]
[1738895589121,33.78831853,195.18,195.17,0.03]
[1738895589320,58.98183711,195.18,195.17,0.03]
[1738895590037,61.54353711,195.18,195.17,0.03]
[1738895590537,20.0,195.13,195.08,25.19351858]
[1738895590745,0.12549,195.12,195.07,25.22351858]
[1738895591037,20.0,195.1,195.07,25.22351858]
[1738895591540,20.0,195.1,195.07,0.03]
[1738895591708,13.53733853,195.12,195.07,0.03]
[1738895591908,20.0,195.1,195.07,0.03]
[1738895593040,0.12549,195.12,195.08,25.19351858]
[1738895593041,20.0,195.12,195.08,25.19351858]
[1738895593219,20.0,195.12,195.09,25.19351858]
[1738895593417,1.5881,195.18,195.11,25.19351858]
[1738895593632,1.5881,195.18,195.13,25.19351858]
[1738895594639,20.0,195.16,195.13,25.19351858]
[1738895595019,20.0,195.14,195.1,25.19351858]
[1738895595214,20.0,195.14,195.11,25.19351858]
[1738895595745,20.0,195.16,195.13,25.19351858]
[1738895596238,20.0,195.15,195.11,25.19351858]
[1738895596440,22.5621,195.15,195.11,25.19351858]
[1738895596622,20.0,195.14,195.1,15.78033041]
[1738895597029,20.0,195.14,195.07,15.81033041]
[1738895597030,33.78831853,195.13,195.07,15.81033041]
[1738895597354,20.0,195.08,195.07,0.03]
[1738895599923,22.563,195.08,195.07,0.03]
[1738895601846,20.0,195.08,195.07,0.03]
[1738895604945,22.563,195.08,195.07,0.03]
[1738895605741,36.10033853,195.08,195.07,0.03]
[1738895606041,61.36612765,195.08,195.07,0.03]
[1738895606748,62.61710765,195.08,195.07,0.0001]
[1738895607043,63.61710765,195.08,195.07,0.0001]
[1738895607346,20.0,194.98,194.97,0.03]
[1738895607530,25.39127912,194.98,194.97,0.03]
[1738895607721,38.80312765,194.98,194.97,0.03]
[1738895607916,38.80312765,194.98,194.88,0.03]
[1738895607917,20.0,194.89,194.88,0.03]
[1738895608142,50.12549,194.89,194.88,0.03]
[1738895608341,13.53733853,194.88,194.85,0.03]
[1738895608563,15.09633853,194.88,194.85,0.03]
[1738895608751,17.66193853,194.88,194.85,0.03]
[1738895610275,17.91291853,194.88,194.85,0.03]
[1738895610441,43.17870765,194.88,194.85,0.03]
[1738895611971,43.17870765,194.88,194.75,0.03]
[1738895611972,20.0,194.78,194.75,0.03]
[1738895612180,20.0,194.76,194.75,0.03]
[1738895612971,43.53733853,194.82,194.75,25.29578912]
[1738895613171,25.26578912,194.83,194.76,25.26578912]
[1738895613355,20.0,194.8,194.76,25.26578912]
[1738895613875,30.0,194.84,194.79,25.26578912]
[1738895614055,20.0,194.81,194.79,25.26578912]
[1738895614381,27.83178912,194.86,194.79,25.26578912]
[1738895614382,38.7573,194.89,194.8,25.26578912]
[1738895614585,20.0,194.86,194.84,25.26578912]
[1738895614868,38.7573,194.89,194.83,25.26578912]
[1738895614869,64.02308912,194.89,194.83,25.26578912]
[1738895615082,8.7573,194.89,194.83,25.26578912]
[1738895615246,38.7573,194.89,194.83,25.26578912]
[1738895615975,20.0,194.86,194.83,25.26578912]
[1738895617582,35.52578912,194.94,194.85,25.26578912]
[1738895617768,2.5648,194.95,194.89,25.26578912]
[1738895617969,13.78831853,194.94,194.88,25.26578912]
[1738895618169,47.91733853,194.96,194.83,0.76956274]
[1738895618170,34.38,194.96,194.83,0.76956274]
[1738895618472,34.38,194.96,194.89,25.26578912]
[1738895618473,62.21038912,194.96,194.89,25.26578912]
[1738895618879,62.21038912,194.96,194.9,25.26578912]
[1738895618880,6.9446,194.96,194.9,25.26578912]
[1738895619073,86.24578912,194.97,194.92,25.26578912]
[1738895619074,60.98,194.97,194.92,25.26578912]
[1738895619272,60.98,194.97,194.95,25.26578912]
[1738895619677,60.98,194.97,194.96,25.26578912]
[1738895620476,60.98,194.97,194.95,25.26578912]
[1738895620670,60.98,194.97,194.94,25.26578912]
[1738895621301,60.98,194.97,194.95,25.26578912]
[1738895622694,60.98,194.97,194.96,25.26578912]
[1738895623004,60.98,194.97,194.96,162.46578912]
[1738895623005,61.043,194.97,194.96,162.46578912]
[1738895623189,0.063,194.97,194.96,162.46578912]
[1738895623775,0.063,194.97,194.96,162.84225912]
[1738895623979,25.26578912,195.12,194.97,16.36071853]
[1738895624272,93.94388912,195.14,195.07,25.26578912]
[1738895624484,96.50618912,195.14,195.07,25.26578912]
[1738895624701,96.50618912,195.14,195.04,5.1269]
[1738895624702,20.0,195.11,195.08,25.26578912]
[1738895626494,61.02,195.14,195.09,25.26578912]
[1738895626699,61.02,195.14,195.1,25.26578912]
[1738895626899,61.02,195.14,195.07,5.1263]
[1738895626900,61.02,195.14,195.11,25.26578912]
[1738895627887,0.063,195.17,195.13,25.26578912]
[1738895628093,0.063,195.17,195.15,25.26578912]
[1738895628306,0.063,195.17,195.16,25.26578912]
[1738895629184,0.063,195.17,195.16,162.46578912]
[1738895629379,0.063,195.17,195.16,137.2]
[1738895630505,0.063,195.17,195.16,162.46578912]
[1738895630999,0.063,195.17,195.16,25.26578912]
[1738895631203,0.063,195.17,195.16,26.03410116]
[1738895631393,0.063,195.17,195.16,25.26578912]
[1738895632292,6.2349,195.26,195.16,25.26578912]
[1738895632293,2.5605,195.28,195.16,162.46578912]
[1738895632491,2.5602,195.3,195.24,25.26578912]
[1738895632809,2.5602,195.3,195.25,25.26578912]
[1738895633004,2.5602,195.3,195.26,25.26578912]
[1738895633206,20.063,195.27,195.23,25.26578912]
[1738895633384,2.6235,195.27,195.22,25.26578912]
[1738895633712,0.063,195.27,195.25,25.26578912]
[1738895633880,0.063,195.27,195.24,25.26578912]
[1738895634082,0.063,195.27,195.2,0.76826445]
[1738895634083,0.063,195.27,195.23,25.26578912]
[1738895634501,20.0,195.26,195.22,25.26578912]
[1738895634719,0.063,195.27,195.24,25.26578912]
[1738895637096,0.063,195.27,195.25,25.26578912]
[1738895637811,0.063,195.27,195.24,25.26578912]
[1738895638513,0.063,195.27,195.23,25.26578912]
[1738895638815,0.063,195.27,195.19,218.8]
[1738895638816,25.26578912,195.26,195.19,106.86578912]
[1738895639116,25.26578912,195.26,195.14,1.6401]
[1738895639117,20.0,195.21,195.17,25.26578912]
[1738895639611,36.0092,195.26,195.18,25.26578912]